Cogmind - Beta 9.5 @@@ ROGUE MODE // 2020.04.03 @ 10:18:25 // AFD2020/Player2 Player: Finestep Result: Destroyed by D-53 Grenadier with Mini Grenade Launcher Performance ------------- Evolutions (0) 0 Regions Visited (2) 400 Robots Destroyed (33) 165 Value Destroyed (583) 583 Prototype IDs (0) 0 Alien Tech Used (0) 0 Bonus (163) 163 TOTAL SCORE: 1311 Bonus ------- High Alert Combat Kills 35 Follower Combat Kills 353 Friendly Fire -225 Cogmind --------- Core Integrity 0/250 Matter 288/300 Energy 125/125 System Corruption 1% Temperature Cool (40) Movement Walking (150) Ox1 Location -10/Mines Parts ------- > --- POWER (1) -------- Light Ion Engine > --- PROPULSION (2) --- Aluminum Leg Aluminum Leg > --- UTILITY (2) ------ Large Storage Unit Large Storage Unit > --- WEAPON (2) ------- Beam Cannon Light Assault Rifle > --- INVENTORY (16) --- Aluminum Leg Aluminum Leg Improved Heat Sink Disposable Heat Sink Disposable Heat Sink High-capacity Battery (400) Medium Armor Plating Medium Armor Plating Medium Armor Plating Medium Armor Plating Hacking Suite Hacking Suite Light Assault Rifle Grenade Launcher Rocket Launcher Mining Laser Peak State ------------ > --- POWER ------------ Light Ion Engine > --- PROPULSION ------- Aluminum Leg Aluminum Leg > --- UTILITY ---------- Large Storage Unit Large Storage Unit > --- WEAPON ----------- Beam Rifle Light Assault Rifle > --- INVENTORY -------- Aluminum Leg Aluminum Leg Aluminum Leg Disposable Heat Sink Disposable Heat Sink Medium Armor Plating Medium Armor Plating Medium Armor Plating Medium Armor Plating Hacking Suite Beam Rifle Beam Cannon Beam Cannon Grenade Launcher Mining Laser [Rating: 10] Favorites ----------- Power Light Ion Engine Engine Light Ion Engine Propulsion Aluminum Leg Treads Light Treads Leg Aluminum Leg Wheel Compact Wheel Utility Large Storage Unit Storage Large Storage Unit Weapon Light Assault Rifle Energy Gun Beam Rifle Energy Cannon Beam Cannon Ballistic Gun Light Assault Rifle Launcher Grenade Launcher Special Weapon Mining Laser Build | -11 -10 -10 ------- Run | Scr Mat Min Slots Evolved . | . . . Power . | . . . Propulsion . | . . . Utility . | . . . Weapon . | . . . Parts Attached 33 | 6 18 9 Power 4 | 1 2 1 Engine 4 | 1 2 1 Core . | . . . Reactor . | . . . Propulsion 12 | 2 7 3 Treads 1 | 1 . . Leg 9 | . 6 3 Wheel 2 | 1 1 . Hover . | . . . Flight . | . . . Utility 4 | 1 3 . Device . | . . . Storage 4 | 1 3 . Processor . | . . . Hackware . | . . . Protection . | . . . Artifact . | . . . Weapon 13 | 2 6 5 Energy Gun 3 | . 3 . Energy Cannon 2 | . . 2 Ballistic Gun 6 | 2 2 2 Ballistic Cannon . | . . . Launcher 1 | . . 1 Special Weapon 1 | . 1 . Impact Weapon . | . . . Slashing Weapon . | . . . Piercing Weapon . | . . . Special Melee Weapon . | . . . Unidentified Prototypes . | . . . Parts Lost 5 | . . 5 Power 1 | . . 1 Propulsion 1 | . . 1 Utility . | . . . Weapon 3 | . . 3 Highest Loss Streak 4 | . . 4 Average Slot Usage (%) 97 | . 99 91 Engine 12 | . 13 6 Treads 1 | . 2 . Leg 24 | . 23 28 Wheel 1 | . 2 . Storage 27 | . 27 28 Energy Gun 7 | . 9 3 Energy Cannon 2 | . . 10 Ballistic Gun 16 | . 18 10 Naked Turns . | . . . Heaviest Build 41 | 10 41 41 Greatest Support 20 | 16 20 20 Greatest Overweight (x) 2 | 1 2 2 Average Overweight (x) 1 | . 1 1 Largest Inventory Capacity 16 | 6 16 16 Average Capacity 14 | 5 15 16 Most Carried 16 | 5 16 16 Average Carried 14 | 3 14 15 Final Capacity 16 | 6 16 16 Final Carried 16 | 5 16 16 Class Distribution -------------------- 100% | Mutant Dominant Class ---------------- Mutant | -10/Materials Mutant | -10/Mines Resources | -11 -10 -10 ----------- Run | Scr Mat Min Matter Collected 793 | 304 339 150 Remotely . | . . . Salvage Created 990 | 107 638 245 Parts 42 | 5 33 4 Haulers Intercepted 1 | . 1 . Recyclers Shooed 8 | . 6 2 Parts Field Recycled . | . . . Retrieved Matter . | . . . Parts Self-Destructed . | . . . Prevented . | . . . Kills | -11 -10 -10 ------- Run | Scr Mat Min Combat Hostiles Destroyed 22 | . 12 10 Guns 13 | . 12 1 Cannons 1 | . . 1 AOE 8 | . . 8 Classes Destroyed 9 | 2 4 3 Worker 1 | . . 1 Builder 1 | . . 1 Tunneler 3 | 2 1 . Hauler 1 | . 1 . Recycler 4 | 1 1 2 Operator 1 | . 1 . Swarmer 2 | . 1 1 Grunt 12 | . 11 1 Assembled 8 | . . 8 Best Kill Streak 10 | 3 4 10 Combat Bots Only 9 | . 4 9 Max Kills in Single Turn 3 | 1 1 3 Gunslinging . | . . . Exploded 3 | . . 3 Melee . | . . . Uniques/NPCs Destroyed . | . . . Combat | -11 -10 -10 -------- Run | Scr Mat Min Damage Taken 1149 | . 510 639 Core 213 | . 55 158 Absorbed by Shields . | . . . Core Remaining (%) 100 | 100 . . Volleys Fired 110 | 12 72 26 Largest 2 | 2 2 2 Hottest 100 | 40 100 80 Shots Fired 200 | 24 138 38 Gun 175 | 24 134 17 Cannon 13 | . . 13 Launcher 8 | . . 8 Special 4 | . 4 . Kinetic 133 | 24 97 12 Thermal 59 | . 41 18 Explosive 8 | . . 8 Electromagnetic . | . . . Robot Hit Streak 12 | 10 12 6 Robot Miss Streak 4 | 2 4 4 Penetration Max . | . . . Secondary Targets 2 | . 2 . Max Gunslinging Chain 1 | . 1 . Shots Hit Robots 124 | 15 87 22 Core Hits 69 | 6 32 31 Critical Hits 1 | . . 1 Critical Kills 1 | . . 1 Critical Parts Destroyed . | . . . Melee Attacks . | . . . Impact . | . . . Slashing . | . . . Piercing . | . . . Sneak Attacks . | . . . Combat Hostiles . | . . . Follow-up Attacks . | . . . Damage Inflicted 2184 | 186 947 1051 Guns 1263 | 186 947 130 Cannons 143 | . . 143 Explosions 778 | . . 778 Melee . | . . . Ramming . | . . . Kinetic 826 | 186 584 56 Thermal 629 | . 363 266 Explosive 729 | . . 729 Electromagnetic . | . . . Impact . | . . . Slashing . | . . . Piercing . | . . . Highest Corruption 1 | . 1 1 Average Corruption 1 | . 1 1 Corruption Purged . | . . . Effects 6 | . 3 3 Message Errors 3 | . 2 1 Energy Discharges 3 | . 1 2 Overload Shots . | . . . Overflow Damage 71 | . . 71 Projectiles . | . . . Explosions 71 | . . 71 Melee . | . . . Knockbacks . | . . . Impact . | . . . Kinetic . | . . . Secondary . | . . . Self-Inflicted Damage 110 | . . 110 Shots 4 | . . 4 Rammed . | . . . Targets Rammed . | . . . Kicked . | . . . Crushed . | . . . Highest Temperature 191 | . 191 111 Average Temperature 41 | . 42 39 Received Heat Transfer 369 | . 264 105 Siege Activations . | . . . Robots Corrupted . | . . . Combat Hostiles . | . . . Parts Fried . | . . . Impact Corruptions . | . . . Robots Melted . | . . . Combat Hostiles . | . . . Parts Melted 2 | . 2 . Heat Transferred 1580 | . 999 581 Parts Sabotaged . | . . . Parts Stolen . | . . . Parts Stripped . | . . . Power Chain Reactions . | . . . Missiles Intercepted . | . . . Alert | -11 -10 -10 ------- Run | Scr Mat Min Peak Influence 539 | 15 539 368 Average Influence 246 | 5 282 195 Maximum Alert Level 2 | . 2 1 Low Security (%) 39 | 100 33 46 Level 1 40 | . 38 53 Level 2 20 | . 28 . Level 3 . | . . . Level 4 . | . . . Level 5 . | . . . High Security . | . . . Max Security . | . . . Squads Dispatched 6 | . 6 . Investigation 4 | . 4 . Extermination . | . . . Reinforcement 2 | . 2 . Assault . | . . . Garrison . | . . . Intercept . | . . . Construction Impeded . | . . . Haulers Reinforced . | . . . Stealth | -11 -10 -10 --------- Run | Scr Mat Min Distress Signals 3 | . 3 . Communications Jammed . | . . . Distress Signals . | . . . Times Spotted 51 | . 30 21 Peak Tracking Total 11 | . 4 11 Tactical Retreats 1 | . . 1 Traps | -11 -10 -10 ------- Run | Scr Mat Min Traps Triggered 2 | . 2 . Indirectly . | . . . Trap Hack Attempts . | . . . Triggered . | . . . Disarmed . | . . . Reprogrammed . | . . . Reused . | . . . Traps Extracted . | . . . Installed . | . . . Triggered . | . . . Machines | -11 -10 -10 ---------- Run | Scr Mat Min Machines Disabled 6 | . . 6 Max in Single Turn 6 | . . 6 Machines Sabotaged . | . . . Garrisons Compromised . | . . . Overloaded Fab Kills . | . . . Fab Network Shutdowns . | . . . Hacking | -11 -10 -10 --------- Run | Scr Mat Min Machines Accessed 7 | . 6 1 Terminals 6 | . 5 1 Fabricators . | . . . Repair Stations . | . . . Recycling Units 1 | . 1 . Scanalyzers . | . . . Garrison Access . | . . . Total Hacks 16 | . 13 3 Successful 7 | . 7 . Failed 8 | . 5 3 Catastrophic 3 | . 3 . Database Lockouts 1 | . 1 . Manual 7 | . 4 3 Terminals 13 | . 10 3 Fabricators . | . . . Repair Stations . | . . . Recycling Units 3 | . 3 . Scanalyzers . | . . . Garrison Access . | . . . Terminal Hacks 4 | . 4 . Robot Schematic 1 | . 1 . Terminal Index 1 | . 1 . Unreport Threat 1 | . 1 . Zone Layout 1 | . 1 . Fabricator Hacks . | . . . Repair Station Hacks . | . . . Recycling Unit Hacks 2 | . 2 . Retrieve Matter 1 | . 1 . Retrieve Components 1 | . 1 . Scanalyzer . | . . . Garrison Access Hacks . | . . . Unauthorized Hacks 2 | . 2 . Terminals . | . . . Fabricators . | . . . Repair Stations . | . . . Recycling Units 1 | . 1 . Tunnel 1 | . 1 . Scanalyzers . | . . . Garrison Access . | . . . Data Cores Recovered . | . . . Used . | . . . Hacking Detections 6 | . 5 1 Full Trace Events 1 | . 1 . Feedback Events . | . . . Feedback Blocked . | . . . Robot Schematics Acquired 1 | . 1 . Robots Built . | . . . Matter . | . . . Time . | . . . Total Robot Build Rating . | . . . Part Schematics Acquired . | . . . Parts Built . | . . . Matter . | . . . Time . | . . . Total Part Build Rating . | . . . Parts Repaired . | . . . Time . | . . . Parts Recycled . | . . . Recycled Matter . | . . . Retrieved Matter . | . . . Retrieved Components 4 | . 4 . Parts Scanalyzed . | . . . Part Schematics Acquired . | . . . Parts Damaged . | . . . Bothacking | -11 -10 -10 ------------ Run | Scr Mat Min Used RIF Installer . | . . . Robots Hacked . | . . . Non-combat . | . . . Combat . | . . . Robot Hacks Applied . | . . . Relay Couplers Released . | . . . Robots Rewired . | . . . Allies Hacked . | . . . Hacks Repelled . | . . . Allies | -11 -10 -10 -------- Run | Scr Mat Min Total Allies 1 | . 1 . Largest Group 1 | . 1 1 Highest-Rated Group 63 | . 63 61 Highest-Rated Ally 63 | . 63 61 Total Orders . | . . . Ally Attacks 67 | . 45 22 Total Damage 1379 | . 967 412 Kills 28 | . 19 9 Allies Corrupted . | . . . Allies Melted . | . . . Intel | -11 -10 -10 ------- Run | Scr Mat Min Robot Analysis Total . | . . . Derelict Logs Recovered . | . . . Drone Launches . | . . . Drone Recoveries . | . . . Exploration | -11 -10 -10 ------------- Run | Scr Mat Min Turns Passed 2017 | 103 1421 493 Spaces Moved 1064 | 56 743 265 Core 6 | 6 . . Treads . | . . . Legs 869 | . 604 265 Wheels 189 | 50 139 . Hover . | . . . Flight . | . . . Fastest Speed 50 | 50 100 150 Average Speed 152 | 97 155 156 Slowest Speed 180 | 100 180 180 Overloaded Moves . | . . . Propulsion Burnouts . | . . . Robots Hopped . | . . . Cave-ins Triggered . | . . . Exploration Rate (%) 52 | 4 94 59 Regions Visited 2 Branch Regions 1 Pre-discovered Areas 1 | . 1 . Known Exits Taken . | . . . Unknown Exits Taken 2 | 1 1 . Scrap Searched . | . . . Spaces Dug 2 | . 2 . Terrain Destroyed 65 | . 2 63 Melee . | . . . Projectile 2 | . 2 . AOE 63 | . . 63 Actions | -11 -10 -10 --------- Run | Scr Mat Min Total 1267 | 79 882 306 Wait 10 | 1 9 . Move 1062 | 55 742 265 Hop . | . . . Pick Up 30 | 5 21 4 Fast Attach 11 | 6 4 1 Attach 8 | . 4 4 Detach . | . . . Swap 14 | . 10 4 Drop 22 | . 20 2 Fire 110 | 12 72 26 Melee . | . . . Ram . | . . . Kick . | . . . Crush . | . . . Escape Stasis . | . . . Rewire . | . . . Trap . | . . . Miscellaneous . | . . . Route ------- -11/Scrapyard -10/Materials (discovered 4 exits: [*Mat x3] / *Min) -10/Mines (discovered 1 exit: [*Mat]) History --------- Turn | Location | Event 24 | -11/Scrapyard | Discovered new exit (range 14) 104 | -11/Scrapyard | Entered Materials 301 | -10/Materials | Build established: Mutant 397 | -10/Materials | Discovered new exit (range 16) 542 | -10/Materials | Discovered new exit (range 12) 1231 | -10/Materials | Discovered new exit (range 15) 1382 | -10/Materials | Discovered new exit (range 3) 1422 | -10/Materials | Central database locked down 1525 | -10/Materials | Entered Mines 1525 | -10/Mines | Accompanied by 1 ally 1536 | -10/Mines | Core integrity fell below 50% 1634 | -10/Mines | Assembled infested the area 1700 | -10/Mines | Destroyed 9 combat bots 1701 | -10/Mines | Lost 4 parts (1p1n2w) 1885 | -10/Mines | Core integrity fell below 20% 1944 | -10/Mines | Received a Rocket Launcher from a helpful Derelict 1951 | -10/Mines | Discovered new exit (range 9) 2018 | -10/Mines | Destroyed by D-53 Grenadier with Mini Grenade Launcher Last Messages --------------- 01917_ Acquired Lgt. Ion Engine. 01938_ A derelict emerges from the shadows. 01939_ G6-677(g): "Some of my friends down here think you need a mining laser when you travel the depths." 01940_ G6-677(g): "They are crazy." 01941_ G6-677(g): "Everyone knows a good old rocket launcher goes a long way." 01942_ G6-677(g): "Need to get rid of a swarm? Done. Need a big hole in the wall? Done." 01943_ G6-677(g): "Need a small hole in the wall? Leave that to the mining laser wimps, I say!" 01944_ G6-677(g): "Would you like a rocket launcher? I know I would if I were you, so I'm going to lend you mine." 01944_ G6-677(g) slips back into the shadows. 01946_ Acquired Rocket Launcher. 01951_ EXIT=FOUND Player 2: "Lgt. Treads FTW!" 01974_ Connecting with Terminal... 01974_ Current location identified: Mines 01999_ 1OTPBW6PUH|W7WHMVEPCU2Q> Map ----- +----------------------------------------------------+ | | | | | | | | | | | | | | | | | | | | | | | ?????????????????????????????????????????????????? | | ?????????????????????????????????????????????????? | | ??????????????????????????###????##??????????????? | | ?????????????????????????? #??? ] #????????????? | | ?????????????????????????? ??? ?????????????? | | ?????????????????????????? #?? ?????????????? | | ?????????????????????????? #?# ??????????????? | | ??????????????????????????d ## #???????????????? | | ?????????????????????????# d #????????????????? | | ????????????????????????## #????????????????? | | ???????????????????????## ! ##???????????????? | | ???????????????????????# #???????????????? | | ???????????????????????# #?????????????????? | | ???????????????????????# [ #?????????????????? | | ???????????????????????# @ #?????????????????? | | ??????????????????????## # #?????????????????? | | ?????????????????????## #???????????????????? | | ?????????????????????# @ #???????????????????? | | ?????????????????????# #####???????????????? | | ?????????????????????## #???????????????? | | ??????????????????????# # #???????????????? | | ??????????????????????# #### #???????????????? | | ??????????????????????## ##??# #???????????????? | | ?#?????????????????????# #???# #???????????????? | | ? #????????????????????# #???# #???????????????? | | # #??????? ???????????# #???# #???????????????? | | # #??????? ???????????# #???# #???????????????? | | ##?????? #?????????? ##### ###?????????????? | | ##????? #??????????###?# ##????????????? | | ##???? #??????????????# """ T#????????????? | | ##??? #??????????????# """ ##????????????? | | ???? #??????????????# """ #?????????????? | | ????# #??????????????# #?????????????? | | # ?????# #??????????????# #?????????????? | | # #?????# #??????????????# < #?????????????? | | # #?????# #??????????????# #?????????????? | | # #?????# #??????????????# #?????????????? | | ####### ####???????????### #####?????????????? | | # ## #??????######## #?????????????????? | +----------------------------------------------------+ Best States ------------- Heat Dissipation 25 Energy Generation 10 Energy Capacity 250 Matter Stores 300 Matter Capacity 300 Sight Range 16 Terrain Scan Density 10 Evasion (%) 40 Recoil Reduction 1 Item Schematics ----------------- None Robot Schematics ------------------ O-16 Technician | -10/Materials | Hacked Fabricated ------------ Nothing Alien Tech Used ----------------- None Achievements -------------- None Challenges ------------ None Game ------ Seed NetworkFieldImmobilizer Manual? 0 Play Time 00:15:01 Cumulative 368.8 hours Start 2020.04.03 @ 10:06:28 End 2020.04.03 @ 10:18:25 Sessions 1 Manual Loads 0 Difficulty Rogue Special Mode AFD2020/Player2 Game No. 258 Rogue 258 Adventurer 0 Explorer 0 Win Type - Total 4 Types 4/0/0/0/0/0/0 Lore% 82 Gallery% 84 Achievement% 63 Wizard Run 0 Options --------- ASCII 0 Keyboard 0 Movement Mouse Keybinds 1 Fullscreen 2 Font 24/Smallcaps Map View 76x50 Tactical HUD 1 Map Filters NONE Filters NONE Steam 1 RUN: 56dd4260-2189-4952-97d4-39a32a90b2e7